bitfinex-derivatives/quotes_BTCF0:USTF0_20241128
["timestamp","ask_amount","ask_price","bid_price","bid_amount"]
[1732804009121,0.11358858,95448.0,95447.0,0.06056702]
[1732804009318,0.02013571,95448.0,95447.0,0.06056702]
[1732804011529,0.02013571,95448.0,95447.0,0.052361]
[1732804013624,0.02013571,95448.0,95447.0,0.06054885]
[1732804014225,0.8184719,95448.0,95447.0,0.00818785]
[1732804014425,0.74761571,95448.0,95447.0,0.00818785]
[1732804015430,0.69525571,95448.0,95447.0,0.00818785]
[1732804015632,0.38093571,95448.0,95447.0,0.06054885]
[1732804015827,0.69525571,95448.0,95447.0,0.00818785]
[1732804016028,0.74761571,95448.0,95447.0,0.00818785]
[1732804016443,0.69525571,95448.0,95447.0,0.00818785]
[1732804016626,0.69525571,95448.0,95447.0,0.06054885]
[1732804017032,0.74761571,95448.0,95447.0,0.00818785]
[1732804018036,0.69525571,95448.0,95447.0,0.06054885]
[1732804018641,0.38093571,95448.0,95447.0,0.06054885]
[1732804019244,0.5061715,95448.0,95447.0,0.06054885]
[1732804019436,0.01013571,95448.0,95447.0,0.06054885]
[1732804019637,0.01,95463.0,95447.0,0.06054885]
[1732804019638,0.12523579,95458.0,95457.0,0.052356]
[1732804019940,0.12523579,95461.0,95457.0,0.36898785]
[1732804020133,0.01,95465.0,95464.0,0.052352]
[1732804020438,0.12523579,95473.0,95464.0,0.06053985]
[1732804020661,0.12523579,95478.0,95477.0,0.052345]
[1732804020835,0.12533053,95479.0,95478.0,0.052344]
[1732804021139,9.474e-05,95479.0,95478.0,0.052344]
[1732804021732,9.474e-05,95479.0,95478.0,0.06054193]
[1732804022540,0.00309474,95479.0,95478.0,0.06054193]
[1732804022738,0.00709474,95479.0,95478.0,0.052344]
[1732804023442,0.00609474,95479.0,95478.0,0.052344]
[1732804024949,0.01009474,95479.0,95478.0,0.07560515]
[1732804025134,0.00809474,95479.0,95478.0,0.07560515]
[1732804025446,0.01309474,95479.0,95478.0,0.02226115]
[1732804025638,0.01809474,95479.0,95478.0,0.02326115]
[1732804025836,0.37889474,95479.0,95478.0,0.00956174]
[1732804026037,0.37889474,95479.0,95478.0,0.02336931]
[1732804026235,0.38189474,95479.0,95478.0,0.00956174]
[1732804027038,0.38189474,95479.0,95478.0,0.02373465]
[1732804027339,0.37889474,95479.0,95478.0,0.00956174]
[1732804027532,0.38389474,95479.0,95478.0,0.001]
[1732804028240,0.43481234,95479.0,95478.0,0.001]
[1732804028442,0.38389474,95479.0,95478.0,0.001]
[1732804028646,0.02309474,95479.0,95478.0,0.00997793]
[1732804028836,0.01309474,95479.0,95478.0,0.00997793]
[1732804029042,0.01309474,95479.0,95478.0,0.03432944]
[1732804029242,0.1381911,95479.0,95478.0,0.05249255]
[1732804029447,0.01309474,95479.0,95478.0,0.05249255]
[1732804030641,0.01309474,95479.0,95478.0,0.03432944]
[1732804030840,0.01309474,95479.0,95478.0,0.04968181]
[1732804032446,0.01309474,95479.0,95478.0,0.06800326]
[1732804032653,0.01309474,95479.0,95478.0,0.04968181]
[1732804033847,0.01309474,95479.0,95478.0,0.03986266]
[1732804034249,0.01309474,95479.0,95478.0,0.04968148]
[1732804034452,0.12509636,95491.0,95479.0,0.052343]
[1732804034654,0.15638537,95499.0,95490.0,0.3608]
[1732804034954,0.16139618,95507.0,95506.0,0.052329]
[1732804035156,0.01,95520.0,95519.0,0.052322]
[1732804035341,0.01,95520.0,95519.0,0.00897793]
[1732804035538,0.01009393,95520.0,95519.0,0.00897793]
[1732804036146,0.37649493,95520.0,95519.0,0.00897793]
[1732804036353,0.32417393,95520.0,95507.0,0.278848]
[1732804036553,0.01609393,95520.0,95519.0,0.001]
[1732804036754,0.01609393,95520.0,95519.0,0.06241197]
[1732804037558,0.01809393,95520.0,95519.0,0.01008997]
[1732804039155,0.01809393,95520.0,95519.0,0.001]
[1732804039368,0.01809393,95520.0,95519.0,0.01009009]
[1732804039553,0.01209393,95520.0,95519.0,0.01009009]
[1732804039754,0.01809393,95520.0,95519.0,0.01008979]
[1732804040361,0.01809393,95520.0,95519.0,0.001]
[1732804040660,0.01709393,95520.0,95519.0,0.01016676]
[1732804040865,0.02109393,95520.0,95519.0,0.01016676]
[1732804041052,0.01409393,95520.0,95519.0,0.00916676]
[1732804041252,0.02209393,95520.0,95519.0,0.01016676]
[1732804041457,0.01809393,95520.0,95519.0,0.01016676]
[1732804041761,0.02209393,95520.0,95519.0,0.01016676]
[1732804044061,0.33117393,95520.0,95519.0,0.01016676]
[1732804044254,0.38849493,95520.0,95519.0,0.001]
[1732804044658,0.052323,95516.0,95497.0,0.3608]
[1732804044965,0.052323,95516.0,95514.0,0.052324]
[1732804045266,0.01,95504.0,95503.0,0.05233]
[1732804045565,0.3708,95504.0,95503.0,0.05233]
[1732804045865,0.3708,95504.0,95491.0,0.50273849]
[1732804045866,0.052333,95499.0,95497.0,0.052334]
[1732804046169,0.01,95494.0,95493.0,0.052336]
[1732804046351,0.3708,95494.0,95493.0,0.052336]
[1732804047455,0.3708,95494.0,95479.0,0.22644]
[1732804047656,0.052336,95493.0,95480.0,0.052343]
[1732804047959,0.052336,95493.0,95481.0,0.052342]
[1732804048161,0.01,95483.0,95481.0,0.052342]
[1732804048468,0.3708,95483.0,95481.0,0.052342]
[1732804048863,0.3708,95483.0,95466.0,0.22644]
[1732804049060,0.3648,95494.0,95454.0,0.46078116]
[1732804049061,0.01,95472.0,95464.0,0.052351]
[1732804049257,0.01,95472.0,95458.0,0.41406128]
[1732804049258,0.41315,95467.0,95458.0,0.18758128]
[1732804049461,0.062354,95459.0,95458.0,0.00056]
[1732804049655,0.062354,95459.0,95437.0,0.23994828]
[1732804049656,0.01,95444.0,95438.0,0.00210151]
[1732804049857,0.01,95444.0,95443.0,0.052363]
[1732804050073,0.01,95444.0,95443.0,0.06084515]
[1732804050463,0.01013162,95444.0,95443.0,0.06084515]
[1732804050679,0.01013162,95444.0,95443.0,0.00848215]
[1732804051266,0.01013162,95444.0,95443.0,0.00881316]
[1732804051467,0.06449462,95444.0,95443.0,0.00881316]
[1732804051868,0.06649462,95444.0,95443.0,0.00881316]
[1732804052265,0.06649462,95444.0,95440.0,0.00012462]
[1732804052465,0.3608,95441.0,95440.0,0.00012462]
[1732804053162,0.3608,95441.0,95440.0,0.0090575]
[1732804053473,0.3608,95441.0,95440.0,0.05248962]
[1732804053867,0.3608,95441.0,95440.0,0.06143652]
[1732804054372,0.3608,95441.0,95440.0,0.00907152]
[1732804054564,0.413164,95441.0,95440.0,0.00012462]
[1732804054966,0.727484,95441.0,95440.0,0.00012462]
[1732804055569,0.727484,95441.0,95418.0,0.3608]
[1732804055570,0.01,95423.0,95418.0,0.3608]
[1732804055776,0.3608,95419.0,95412.0,0.05238]
[1732804056077,0.3608,95419.0,95413.0,0.02320176]
[1732804056373,0.3608,95419.0,95414.0,0.0089235]
[1732804056573,0.3608,95419.0,95418.0,0.00012868]
[1732804056770,0.3608,95419.0,95418.0,0.0091383]
[1732804056965,0.3618,95419.0,95418.0,0.0091383]
[1732804057170,0.3628,95419.0,95418.0,0.0091383]
[1732804057372,0.3618,95419.0,95418.0,0.00012868]
[1732804057573,0.3628,95419.0,95418.0,0.00012868]
[1732804058072,0.3618,95419.0,95418.0,0.01412868]
[1732804058277,0.001,95419.0,95418.0,0.06650568]
[1732804058667,0.001,95419.0,95418.0,0.07544942]
[1732804058868,0.001,95419.0,95418.0,0.08992311]
[1732804059071,0.001,95419.0,95418.0,0.10458694]
[1732804059573,0.001,95419.0,95418.0,0.10941186]
[1732804059773,0.001,95419.0,95418.0,0.08511325]
[1732804060271,0.001,95419.0,95418.0,0.31167325]
[1732804060477,0.01,95435.0,95418.0,0.30467325]
[1732804060678,0.01,95435.0,95424.0,0.3608]
[1732804060879,0.01,95435.0,95433.0,0.052368]
[1732804061870,0.011,95435.0,95433.0,0.052368]
[1732804062069,0.011,95435.0,95426.0,0.052372]
[1732804062267,0.3608,95431.0,95427.0,0.052372]
[1732804062576,0.015,95435.0,95418.0,0.25264805]
[1732804062767,0.005,95435.0,95434.0,0.052368]
[1732804063473,0.00013162,95444.0,95443.0,0.052363]
[1732804063674,0.01,95468.0,95466.0,0.05235]
[1732804063868,0.3608,95470.0,95469.0,0.052349]
[1732804064069,0.3608,95470.0,95450.0,0.18970197]
[1732804064070,0.3708,95478.0,95466.0,0.22268]
[1732804064265,0.3708,95478.0,95472.0,0.052347]
[1732804064475,0.3708,95478.0,95459.0,0.22268]
[1732804064667,9.265e-05,95471.0,95463.0,0.052352]
[1732804064869,9.265e-05,95471.0,95459.0,0.22268]
[1732804064870,0.413148,95470.0,95459.0,0.22268]
[1732804065069,0.3608,95460.0,95454.0,0.01469475]
[1732804065274,0.052356,95456.0,95446.0,0.413162]
[1732804065581,0.052357,95455.0,95447.0,0.03004333]
[1732804065879,0.01,95451.0,95446.0,0.00056]
[1732804066177,0.01,95451.0,95443.0,0.052363]
[1732804066777,0.01,95451.0,95444.0,0.052363]
[1732804068378,0.01,95451.0,95446.0,0.052361]
[1732804068379,0.013,95451.0,95446.0,0.052361]
[1732804068680,0.013,95451.0,95450.0,0.052359]
[1732804069279,0.003,95451.0,95450.0,0.052359]
[1732804070279,0.003,95451.0,95449.0,0.05236]
[1732804070480,0.011,95451.0,95446.0,0.001]
[1732804070684,0.011,95451.0,95449.0,0.05236]
[1732804071182,0.009,95451.0,95449.0,0.05236]
[1732804071775,0.007,95451.0,95449.0,0.05236]
[1732804072078,0.007,95451.0,95450.0,0.3608]
[1732804072280,0.007,95451.0,95450.0,0.40931144]
[1732804072977,0.007,95451.0,95450.0,0.46167044]
[1732804073479,0.007,95451.0,95450.0,0.47594945]
[1732804073688,0.007,95451.0,95450.0,0.48577071]
[1732804073689,0.008,95451.0,95450.0,0.48577071]
[1732804074085,0.008,95451.0,95450.0,0.12497071]
[1732804074287,0.008,95451.0,95450.0,0.02319045]
[1732804074288,0.001,95451.0,95450.0,0.02319045]
[1732804074479,0.001,95451.0,95450.0,0.00891144]
[1732804074480,0.003,95451.0,95450.0,0.00891144]
[1732804074674,0.055359,95451.0,95450.0,0.00891144]
[1732804074881,0.003,95451.0,95450.0,0.00891144]
[1732804075389,0.003,95451.0,95450.0,0.02311971]
[1732804077482,0.055359,95451.0,95450.0,0.02311971]
[1732804077678,0.369639,95451.0,95450.0,0.02311971]
[1732804077887,0.369639,95451.0,95418.0,0.31008212]
[1732804077888,0.01,95443.0,95429.0,0.01012762]
[1732804078088,0.413169,95433.0,95432.0,0.02297172]
[1732804078390,0.413169,95433.0,95432.0,0.00982257]
[1732804078580,0.413169,95433.0,95432.0,0.03236851]
[1732804079085,0.423169,95433.0,95432.0,0.03236851]
[1732804079486,0.783969,95433.0,95432.0,0.03236851]
[1732804079682,0.783969,95433.0,95432.0,0.01849384]
[1732804079882,0.783969,95433.0,95432.0,0.00867127]
[1732804080491,0.784969,95433.0,95432.0,0.04050431]
[1732804080896,0.7326,95433.0,95432.0,0.04050431]
[1732804081194,0.783969,95433.0,95432.0,0.01267127]
[1732804081377,0.7316,95433.0,95432.0,0.01267127]
[1732804081581,0.7316,95433.0,95432.0,0.06604027]
[1732804082488,0.7316,95433.0,95432.0,0.09859148]
[1732804082786,0.7316,95433.0,95432.0,0.10841679]
[1732804083289,0.7316,95433.0,95432.0,0.05604779]
[1732804083896,0.7316,95433.0,95432.0,0.10841679]
[1732804084087,0.7316,95433.0,95432.0,0.09859148]
[1732804084293,0.7316,95433.0,95432.0,0.10341629]
[1732804084488,0.3608,95433.0,95432.0,0.10341629]
[1732804084687,0.0393,95450.0,95442.0,0.052364]
[1732804084891,0.01,95454.0,95443.0,0.03241007]
[1732804085089,0.01,95454.0,95444.0,0.25827406]
[1732804085394,0.01,95454.0,95448.0,0.01013755]
[1732804085584,0.01,95454.0,95444.0,0.21604]
[1732804085585,0.01,95454.0,95452.0,0.052358]
[1732804085789,0.01,95454.0,95453.0,0.04223406]
[1732804086085,0.3608,95456.0,95453.0,0.04550827]
[1732804086398,0.3608,95456.0,95455.0,0.01013755]
[1732804086588,0.3608,95456.0,95455.0,0.05564582]
[1732804087291,0.3608,95456.0,95455.0,0.04550827]
[1732804087690,0.3648,95456.0,95455.0,0.05564201]
[1732804087892,0.3648,95456.0,95455.0,0.04550827]
[1732804088393,0.3728,95456.0,95455.0,0.04650827]
[1732804090491,0.68708,95456.0,95438.0,0.18758128]
[1732804090826,0.3608,95445.0,95443.0,0.00982285]
[1732804091291,0.3608,95445.0,95438.0,0.18758128]
[1732804091292,0.3608,95445.0,95444.0,0.00982285]
[1732804091492,0.3608,95445.0,95438.0,0.23994728]
[1732804091493,0.3608,95445.0,95443.0,0.052363]
[1732804091692,0.3608,95448.0,95438.0,0.18758128]
[1732804091897,0.3608,95448.0,95440.0,0.052365]
[1732804092100,0.001,95445.0,95442.0,0.052364]
[1732804092302,0.001,95445.0,95443.0,0.052363]
[1732804092690,0.001,95445.0,95441.0,0.00982362]
[1732804092896,0.052364,95442.0,95441.0,0.00982362]
[1732804093093,0.0397,95444.0,95435.0,0.18758128]
[1732804093292,0.3608,95436.0,95435.0,0.18758128]
[1732804093700,0.3608,95436.0,95434.0,0.18758128]
[1732804093895,0.413167,95436.0,95434.0,0.18758128]
[1732804094393,0.3608,95436.0,95434.0,0.18758128]
[1732804094901,0.3608,95436.0,95435.0,0.052368]
[1732804095710,0.3608,95436.0,95434.0,0.18758128]
[1732804095901,0.3608,95436.0,95434.0,0.19058128]
[1732804096302,0.3608,95436.0,95435.0,0.00840571]
[1732804097006,0.3608,95436.0,95435.0,0.06077371]
[1732804097605,0.3608,95436.0,95435.0,0.06277371]
[1732804098205,0.3608,95436.0,95435.0,0.01040571]
[1732804101608,0.3608,95436.0,95435.0,0.02433379]
[1732804102409,0.3608,95436.0,95435.0,0.01040571]
[1732804102608,0.3608,95436.0,95435.0,0.02447795]
[1732804102910,0.3608,95436.0,95435.0,0.01040571]
[1732804103217,0.3608,95436.0,95435.0,0.0244777]
[1732804103404,0.3608,95436.0,95435.0,0.01040571]
[1732804103711,0.12514192,95441.0,95440.0,0.052365]
[1732804104006,0.12514192,95450.0,95448.0,0.05236]
[1732804104306,0.12514192,95450.0,95449.0,0.00878008]
[1732804104606,0.12514192,95458.0,95457.0,0.052356]
[1732804104906,0.12514192,95464.0,95462.0,0.052353]
[1732804105697,0.12514192,95465.0,95455.0,0.18798939]
[1732804105902,0.12514192,95465.0,95456.0,0.0139292]
[1732804106104,0.12514192,95464.0,95457.0,0.0139292]
[1732804106402,0.12514192,95465.0,95462.0,0.052353]
[1732804106601,0.006,95464.0,95463.0,0.00861573]
[1732804107810,0.005,95464.0,95463.0,0.00961573]
[1732804108004,0.011,95464.0,95463.0,0.00961573]
[1732804109502,0.011,95464.0,95463.0,0.01061573]
[1732804109699,0.011,95464.0,95463.0,0.06296773]
[1732804111010,0.011,95464.0,95463.0,0.054352]
[1732804111511,0.011,95464.0,95463.0,0.06314187]
[1732804112612,0.011,95464.0,95463.0,0.07731097]
[1732804113006,9.265e-05,95471.0,95463.0,0.18206306]
[1732804113314,0.54710977,95491.0,95472.0,0.052347]
[1732804113512,0.3608,95491.0,95473.0,0.30289687]
[1732804113807,0.3608,95491.0,95474.0,0.07515307]
[1732804114011,0.3608,95491.0,95476.0,0.052345]
[1732804114217,0.3608,95491.0,95489.0,0.052338]
[1732804114814,0.3658,95491.0,95490.0,0.00880218]
[1732804115010,0.3718,95491.0,95490.0,0.00880218]
[1732804116116,0.3718,95491.0,95490.0,0.06113918]
[1732804116513,0.006,95491.0,95490.0,0.052337]
[1732804116810,0.34148966,95492.0,95491.0,0.052337]
[1732804117305,0.34148966,95492.0,95489.0,0.01484142]
[1732804117511,0.34148966,95492.0,95488.0,0.052339]
[1732804117921,0.34148966,95492.0,95491.0,0.052337]
[1732804118719,0.0001148,95492.0,95491.0,0.052337]
[1732804120610,0.3608,95513.0,95491.0,0.41888136]
[1732804120814,0.3608,95513.0,95512.0,0.052325]
[1732804122220,0.3608,95513.0,95512.0,0.053325]
[1732804122813,0.00013393,95515.0,95514.0,0.052324]
[1732804123921,0.00013393,95515.0,95514.0,0.053324]
[1732804124216,0.00013393,95515.0,95514.0,0.054324]
[1732804125414,0.00013393,95515.0,95514.0,0.053324]
[1732804125730,0.00013393,95515.0,95514.0,0.001]
[1732804126022,0.05245793,95515.0,95514.0,0.001]
[1732804126529,0.05245793,95515.0,95514.0,0.053324]
[1732804126530,0.00013393,95515.0,95514.0,0.053324]
[1732804126714,0.00013393,95515.0,95514.0,0.052324]
[1732804128024,0.00013393,95515.0,95505.0,0.01495407]
[1732804128224,0.00013393,95515.0,95506.0,0.20248]
[1732804128525,0.052325,95512.0,95506.0,0.20248]
[1732804128721,0.052329,95507.0,95504.0,0.05233]
[1732804128919,0.052329,95506.0,95504.0,0.052329]
[1732804130321,0.3608,95507.0,95499.0,0.01501255]
[1732804130625,0.3608,95507.0,95495.0,0.20248]
[1732804130626,0.052331,95502.0,95495.0,0.052334]
[1732804130920,0.3608,95499.0,95493.0,0.20248]
[1732804131120,0.3608,95499.0,95497.0,0.052334]
[1732804131719,0.3608,95499.0,95498.0,0.052333]
[1732804132919,0.3608,95499.0,95498.0,0.366493]
[1732804133118,0.3608,95499.0,95498.0,0.568973]
[1732804133819,0.3608,95499.0,95498.0,0.57739462]
[1732804134220,0.3608,95507.0,95506.0,0.052328]
[1732804134820,0.3608,95507.0,95506.0,0.0609706]
[1732804135823,0.3608,95507.0,95506.0,0.0086426]
[1732804136829,0.3608,95507.0,95506.0,0.03839782]
[1732804137126,0.3608,95507.0,95506.0,0.02303892]
[1732804138531,0.00013393,95515.0,95513.0,0.052325]
[1732804138532,0.36093393,95515.0,95513.0,0.052325]
[1732804138728,0.34893393,95515.0,95514.0,0.02303892]
[1732804138933,0.34893393,95515.0,95514.0,0.04173738]
[1732804139430,0.34893393,95515.0,95514.0,0.02303892]
[1732804139732,0.34901778,95515.0,95514.0,0.02303892]
[1732804139926,0.44269714,95515.0,95514.0,0.042067]
[1732804140129,0.34901778,95515.0,95514.0,0.094391]
[1732804140329,0.34901778,95515.0,95514.0,0.10420751]
[1732804140737,0.34901778,95515.0,95514.0,0.10847957]
[1732804140925,8.385e-05,95515.0,95514.0,0.10847957]
[1732804141434,0.09371507,95528.0,95514.0,0.44862073]
[1732804141623,0.09371507,95528.0,95527.0,0.06239137]
[1732804141822,0.09371507,95528.0,95527.0,0.28243491]
[1732804142030,0.3608,95546.0,95527.0,0.28243491]
[1732804142031,0.3608,95546.0,95527.0,0.30179459]
[1732804142227,0.15506509,95554.0,95539.0,0.37086648]
[1732804142425,0.15506509,95554.0,95552.0,0.01006648]
[1732804142630,0.0847,95559.0,95553.0,0.04390108]
[1732804142935,0.0847,95559.0,95556.0,0.01007241]
[1732804142936,0.00012923,95558.0,95556.0,0.01007241]
[1732804143251,0.00012923,95558.0,95557.0,0.04390108]
[1732804144836,0.00012923,95558.0,95557.0,0.04490108]
[1732804145732,0.00012923,95558.0,95557.0,0.05471238]
[1732804146927,0.00012923,95558.0,95557.0,0.25043238]
[1732804147939,0.00012923,95558.0,95557.0,0.05471238]
[1732804150437,0.00012923,95558.0,95557.0,0.05371238]
[1732804151141,0.00012923,95558.0,95557.0,0.04390108]
[1732804151433,0.00012923,95558.0,95557.0,0.05371284]
[1732804152033,0.3608,95568.0,95557.0,0.05371284]
[1732804152228,0.3608,95568.0,95558.0,0.01526979]
[1732804152435,0.3608,95568.0,95565.0,0.052296]
[1732804152638,0.3608,95568.0,95566.0,0.04390108]
[1732804152836,0.3608,95568.0,95567.0,0.03435791]
[1732804153042,0.3608,95568.0,95567.0,0.04390108]
[1732804153437,0.3608,95568.0,95567.0,0.05371284]
[1732804153634,0.3608,95568.0,95567.0,0.05371213]
[1732804153938,0.3608,95568.0,95567.0,0.04390108]
[1732804154437,0.3608,95568.0,95567.0,0.09619608]
[1732804154638,0.3608,95568.0,95567.0,0.10600708]
[1732804154934,0.3608,95568.0,95567.0,0.10568109]
[1732804155136,0.3608,95568.0,95567.0,0.062106]
[1732804155332,0.3608,95568.0,95567.0,0.09586687]
[1732804155527,0.3608,95568.0,95567.0,0.10589511]
[1732804156039,0.3608,95568.0,95567.0,0.09586687]
[1732804156237,0.3608,95568.0,95567.0,0.09686687]
[1732804157537,0.3608,95568.0,95567.0,0.09586687]
[1732804158651,0.3608,95568.0,95567.0,0.09450244]
[1732804160439,0.00010925,95569.0,95567.0,0.09450244]
[1732804160641,0.00010925,95569.0,95568.0,0.04220744]
[1732804160940,0.00010925,95569.0,95568.0,0.09450244]
[1732804161531,0.00010925,95569.0,95568.0,0.04220744]
[1732804161532,0.05240325,95569.0,95568.0,0.04220744]
[1732804161738,0.00010925,95569.0,95568.0,0.04220744]
[1732804162237,0.00010925,95569.0,95568.0,0.02385571]
[1732804162238,0.05240325,95569.0,95568.0,0.02385571]
[1732804162539,0.05240325,95569.0,95554.0,0.3608]
[1732804162540,0.00010925,95569.0,95554.0,0.3608]
[1732804162739,0.3608,95562.0,95561.0,0.052299]
[1732804163541,0.00010925,95569.0,95560.0,0.052299]
[1732804163741,0.00010925,95569.0,95568.0,0.052295]
[1732804164336,0.00010925,95569.0,95561.0,0.001]
[1732804164542,0.3608,95563.0,95561.0,0.053298]
[1732804165038,0.3608,95563.0,95562.0,0.052298]
[1732804168344,0.3608,95563.0,95562.0,0.06210958]
[1732804170044,0.413097,95563.0,95562.0,0.00981158]
[1732804170442,0.3608,95563.0,95562.0,0.00981158]
[1732804170648,0.3608,95563.0,95562.0,0.06210958]
[1732804171146,0.00010925,95569.0,95568.0,0.052295]
[1732804171351,0.3608,95582.0,95568.0,0.241335]
[1732804171645,0.15506509,95586.0,95578.0,0.1878133]
[1732804171848,0.15506509,95587.0,95586.0,0.052285]
[1732804172239,0.15506509,95590.0,95589.0,0.052283]
[1732804172638,0.15506509,95590.0,95589.0,0.06656241]
[1732804172840,0.3608,95592.0,95591.0,0.052282]
[1732804173040,0.3608,95592.0,95591.0,0.06656141]
[1732804173252,0.413082,95592.0,95591.0,0.01427941]
[1732804173949,0.3608,95592.0,95591.0,0.01427941]
[1732804174248,0.3608,95592.0,95591.0,0.06756141]
[1732804174451,0.3608,95592.0,95591.0,0.07737299]
[1732804174654,0.3608,95592.0,95591.0,0.08615201]
[1732804175450,0.3608,95592.0,95591.0,0.08566083]
[1732804175637,0.3608,95592.0,95591.0,0.03337883]
[1732804175843,0.413082,95592.0,95591.0,0.03337883]
[1732804176452,0.413082,95592.0,95591.0,0.01949104]
[1732804176752,0.413082,95592.0,95591.0,0.07177304]
[1732804177248,0.3608,95592.0,95591.0,0.06196146]
[1732804177648,0.10012891,95600.0,95591.0,0.06196146]
[1732804177947,0.10012891,95600.0,95599.0,0.052278]
[1732804178147,0.10012891,95600.0,95599.0,0.06095746]
[1732804178745,0.10012891,95600.0,95599.0,0.06065597]
[1732804179340,0.3608,95615.0,95614.0,0.05227]
[1732804179646,0.0859,95621.0,95605.0,0.31361322]
[1732804179858,0.138166,95621.0,95616.0,0.052268]
[1732804180147,0.052269,95615.0,95610.0,0.052272]
[1732804180450,0.3608,95615.0,95604.0,0.189]
[1732804180644,0.3608,95615.0,95599.0,0.01583493]
[1732804180645,0.052277,95600.0,95599.0,0.20331714]
[1732804180846,0.052277,95600.0,95599.0,0.00924982]
[1732804181051,0.052275,95604.0,95599.0,0.00107354]
[1732804181252,0.052276,95603.0,95599.0,0.00107354]
[1732804181441,0.359,95607.0,95605.0,0.052274]
[1732804181643,0.052275,95605.0,95599.0,7.354e-05]
[1732804181854,0.052275,95605.0,95604.0,0.001]
[1732804182249,0.359,95607.0,95604.0,0.001]
[1732804182554,0.359,95607.0,95606.0,0.052274]
[1732804183144,0.359,95607.0,95604.0,0.001]
[1732804183353,0.359,95607.0,95606.0,0.052274]
[1732804183853,0.367,95607.0,95606.0,0.053274]
[1732804184046,0.367,95607.0,95606.0,0.051274]
[1732804184245,0.374,95607.0,95606.0,0.051274]
[1732804184552,0.374,95607.0,95606.0,0.050274]
[1732804184949,0.367,95607.0,95606.0,0.050274]
[1732804185149,0.374,95607.0,95606.0,0.051274]
[1732804186251,0.366,95607.0,95606.0,0.051274]
[1732804186449,0.373,95607.0,95606.0,0.052274]
[1732804186845,0.425273,95607.0,95606.0,0.002]
[1732804187050,0.418273,95607.0,95606.0,0.001]
[1732804187358,0.425273,95607.0,95606.0,0.002]
[1732804188060,0.425273,95607.0,95606.0,0.054274]
[1732804188865,0.425273,95607.0,95606.0,0.002]
[1732804191263,0.425273,95607.0,95606.0,0.054274]
[1732804194363,0.425273,95607.0,95606.0,0.002]
[1732804195356,0.55051329,95607.0,95606.0,0.002]
[1732804195758,0.425273,95607.0,95606.0,0.002]
[1732804195959,0.55020472,95607.0,95606.0,0.002]
[1732804196160,0.425273,95607.0,95606.0,0.002]
[1732804197055,0.052281,95593.0,95582.0,0.052287]
[1732804197255,0.05229,95580.0,95579.0,0.052288]
[1732804198057,0.05229,95580.0,95579.0,0.0524128]
[1732804198863,0.05229,95580.0,95579.0,0.0001248]
[1732804199968,0.05229,95580.0,95579.0,0.0021248]
[1732804200472,0.05229,95580.0,95579.0,0.0534138]
[1732804200661,0.007,95580.0,95579.0,0.0534138]
[1732804200969,0.012,95580.0,95579.0,0.0534138]
[1732804201156,0.012,95580.0,95579.0,0.24082777]
[1732804201477,0.012,95580.0,95579.0,0.0534138]
[1732804201770,0.064288,95580.0,95579.0,0.0534138]
[1732804202070,0.738968,95580.0,95579.0,0.0011248]
[1732804202261,0.87112,95580.0,95570.0,0.18785062]
[1732804202462,0.87112,95580.0,95565.0,0.25066976]
[1732804202463,0.0419,95579.0,95573.0,0.18785062]
[1732804202760,0.12512135,95578.0,95577.0,0.05229]
[1732804203061,0.12512135,95578.0,95572.0,0.18785062]
[1732804203062,0.052292,95573.0,95572.0,0.18785062]
[1732804203270,0.052292,95573.0,95572.0,0.05238641]
[1732804203465,0.17741035,95578.0,95577.0,0.05229]
[1732804203662,0.052292,95573.0,95572.0,9.341e-05]
[1732804203965,0.052292,95573.0,95572.0,0.05238641]
[1732804204571,0.052292,95573.0,95572.0,9.341e-05]
[1732804204771,0.366172,95573.0,95572.0,9.341e-05]
[1732804205064,0.373172,95573.0,95572.0,9.341e-05]
[1732804205269,0.452972,95573.0,95572.0,9.341e-05]
[1732804205457,0.637412,95573.0,95572.0,9.341e-05]
[1732804205667,0.68827827,95573.0,95572.0,9.341e-05]
[1732804206258,0.68827827,95573.0,95545.0,0.18600977]
[1732804206259,0.052303,95554.0,95545.0,0.18600977]
[1732804206465,0.052303,95554.0,95553.0,0.052303]
[1732804206859,0.3608,95555.0,95545.0,0.01684051]
[1732804207068,0.3608,95546.0,95545.0,0.05387677]
[1732804207261,0.36089243,95546.0,95545.0,0.05401237]
[1732804207461,0.41319943,95546.0,95545.0,0.05801237]
[1732804207668,0.41319943,95546.0,95545.0,0.06701237]
[1732804208069,0.36089243,95546.0,95545.0,0.05801237]
[1732804208261,0.36189243,95546.0,95545.0,0.06301237]
[1732804208468,0.00109243,95546.0,95545.0,0.06501237]
[1732804208663,0.12490745,95566.0,95545.0,0.43136754]
[1732804208976,0.12490745,95574.0,95561.0,0.3608]
[1732804209164,0.12490745,95578.0,95577.0,0.05229]
[1732804209366,0.12490745,95578.0,95569.0,0.3608]
[1732804209567,0.052294,95573.0,95572.0,0.052292]
[1732804209761,0.00012347,95577.0,95574.0,0.052291]
[1732804209966,0.00012347,95577.0,95552.0,0.18785062]
[1732804210162,0.00012347,95577.0,95553.0,0.00813608]
[1732804210163,0.0523,95559.0,95553.0,0.00813608]
[1732804210373,0.3608,95566.0,95551.0,0.00064]
[1732804210374,0.052303,95552.0,95551.0,0.00064]
[1732804210673,0.052306,95550.0,95549.0,0.052305]
[1732804210869,0.3608,95557.0,95545.0,0.02397761]
[1732804210870,0.052307,95546.0,95545.0,0.02397761]
[1732804211174,0.052307,95546.0,95545.0,0.01740784]
[1732804211175,0.413107,95546.0,95545.0,0.01740784]
[1732804211677,0.413107,95546.0,95511.0,0.22735062]
[1732804211678,0.727107,95546.0,95532.0,0.052314]
[1732804211875,0.052314,95533.0,95532.0,0.052314]
[1732804212377,0.3608,95536.0,95535.0,0.052313]
[1732804212571,0.052311,95539.0,95537.0,0.052311]
[1732804213771,0.053311,95539.0,95537.0,0.061311]
[1732804214878,0.053311,95539.0,95537.0,0.065311]
[1732804215077,0.053311,95539.0,95537.0,0.013]
[1732804215785,0.3608,95538.0,95537.0,0.013]
[1732804215990,0.4433,95538.0,95537.0,0.013]